Cogmind - Beta 17 @@@ ROGUE MODE // 2026.07.23 @ 18:41:29 Player: V1-Dll Result: Destroyed by as-85848 with Assembled Blade Performance ------------- Evolutions (0) 0 Regions Visited (2) 400 Robots Destroyed (16) 80 Value Destroyed (287) 287 Prototype IDs (4) 80 Alien Tech Used (0) 0 Bonus (0) 0 TOTAL SCORE: 847 Bonus ------- None Cogmind --------- Core Integrity 0/250 Matter 270/300 Energy 91/100 System Corruption 0% Temperature Cool (9) Movement Rolling (115) Ox1 Location -10/Mines Parts ------- > --- POWER (1) -------- (None) > --- PROPULSION (2) --- Aluminum Leg Compact Wheel > --- UTILITY (2) ------ Large Storage Unit Seismic Detector > --- WEAPON (2) ------- Advanced Beam Cannon Grenade Launcher > --- INVENTORY (15) --- Ion Engine Medium Storage Unit Improved Targeting Computer Improved Targeting Computer Improved Targeting Computer Advanced Beam Cannon Advanced Beam Cannon Peak State ------------ > --- POWER ------------ Improved Ion Engine > --- PROPULSION ------- Aluminum Leg Aluminum Leg > --- UTILITY ---------- Small Storage Unit Seismic Detector > --- WEAPON ----------- Advanced Beam Cannon Advanced Beam Cannon > --- INVENTORY -------- Ion Engine Compact Wheel Flight Unit Flight Unit Improved Targeting Computer Improved Targeting Computer Advanced Beam Cannon [Rating: 13] Favorites ----------- Power Improved Ion Engine Engine Improved Ion Engine Propulsion Aluminum Leg Leg Aluminum Leg Wheel Compact Wheel Utility Small Storage Unit Device Seismic Detector Storage Small Storage Unit Weapon Advanced Beam Cannon Energy Gun Medium Laser Energy Cannon Advanced Beam Cannon Launcher Grenade Launcher Build | -11 -10 -10 ------- Run | Yrd Mat Min Slots Evolved . | . . . Power . | . . . Propulsion . | . . . Utility . | . . . Weapon . | . . . Parts Attached 13 | 6 6 1 Power 2 | 1 1 . Engine 2 | 1 1 . Core . | . . . Reactor . | . . . Propulsion 3 | 2 1 . Treads . | . . . Leg 2 | 2 . . Wheel 1 | . 1 . Hover . | . . . Flight . | . . . Utility 3 | 1 2 . Device 1 | . 1 . Storage 2 | 1 1 . Processor . | . . . Hackware . | . . . Protection . | . . . Artifact . | . . . Weapon 5 | 2 2 1 Energy Gun 2 | 2 . . Energy Cannon 2 | . 2 . Ballistic Gun . | . . . Ballistic Cannon . | . . . Launcher 1 | . . 1 Special Weapon . | . . . Impact Weapon . | . . . Slashing Weapon . | . . . Piercing Weapon . | . . . Special Melee Weapon . | . . . Unidentified Prototypes 1 | . 1 . Parts Lost 3 | . 3 . Power 2 | . 2 . Propulsion 1 | . 1 . Utility . | . . . Weapon . | . . . Highest Loss Streak 1 | . 1 . To Critical Strikes . | . . . Average Backups 6 | 1 6 7 Power . | . 1 1 Propulsion 1 | . 1 . Utility 2 | . 2 4 Weapon 1 | . 1 2 Tool/Special . | . . . Unused Backups 9 | . 3 6 Power 1 | . . 1 Propulsion 2 | . 2 . Utility 4 | . . 4 Weapon 2 | . 1 1 Tool/Special . | . . . Average Slot Usage (%) 79 | . 79 85 Engine 10 | . 10 . Leg 19 | . 20 14 Wheel 4 | . 4 14 Device 11 | . 11 14 Storage 14 | . 14 14 Energy Gun 7 | . 8 . Energy Cannon 10 | . 10 14 Peak Build Rating 13 | 6 13 9 Average Rating 8 | 4 8 9 On Entrance 4 | . 6 8 Avg Prop Armor Cover (%) 11 | . 11 10 Naked Turns . | . . . Heaviest Build 32 | 12 32 28 Greatest Support 20 | 20 20 16 Greatest Overweight (x) 1 | 1 1 1 Average Overweight (x) . | . . 1 Largest Inventory Capacity 15 | 8 15 15 Average Capacity 9 | 6 9 15 Most Carried 8 | 2 8 7 Average Carried 6 | 1 6 7 Final Capacity 15 | 8 15 15 Final Carried 8 | 2 8 7 Class Distribution -------------------- 100% | Mutant Dominant Class ---------------- Mutant | -10/Materials Mutant | -10/Mines Resources | -11 -10 -10 ----------- Run | Yrd Mat Min Matter Collected 340 | 223 97 20 Remotely . | . . . Salvage Created 315 | . 290 25 Parts 20 | . 17 3 Haulers Intercepted . | . . . Recyclers Shooed . | . . . Parts Field Recycled . | . . . Retrieved Matter . | . . . Parts Self-Destructed . | . . . Prevented . | . . . Parts Restored . | . . . Kills | -11 -10 -10 ------- Run | Yrd Mat Min Combat Hostiles Destroyed 16 | . 10 6 Guns 4 | . 4 . Cannons 5 | . 5 . AOE 6 | . . 6 Classes Destroyed 5 | . 4 1 Operator 1 | . 1 . Watcher 2 | . 2 . Swarmer 9 | . 6 3 Grunt 4 | . 4 . Assembled 3 | . . 3 Best Kill Streak 4 | . 4 3 Combat Bots Only 3 | . 3 3 Max Kills in Single Turn 3 | . 1 3 Gunslinging . | . . . Exploded 3 | . . 3 Melee . | . . . Uniques/NPCs Destroyed . | . . . Combat | -11 -10 -10 -------- Run | Yrd Mat Min Hostile Shots Fired 57 | . 52 5 Missed 12 | . 11 1 Hits 45 | . 41 4 Melee 1 | . . 1 Projectile 44 | . 41 3 Damage Taken 704 | . 550 154 Core 274 | . 191 83 Absorbed by Shields . | . . . Core Remaining (%) 100 | 100 . . Volleys Fired 64 | . 59 5 Largest 2 | . 2 1 Hottest 100 | . 100 68 Shots Fired 82 | . 77 5 Gun 36 | . 36 . Cannon 42 | . 41 1 Launcher 4 | . . 4 Special . | . . . Kinetic . | . . . Thermal 78 | . 77 1 Explosive 4 | . . 4 Electromagnetic . | . . . Robot Hit Streak 5 | . 5 2 Robot Miss Streak 5 | . 5 1 Penetration Max . | . . . Secondary Targets . | . . . Shots Hit Robots 43 | . 41 2 Core Hits 24 | . 15 9 Critical Kills . | . . . Critical Parts Destroyed . | . . . Critical Strikes 2 | . 2 . Burn 2 | . 2 . Melee Attacks . | . . . Impact . | . . . Slashing . | . . . Piercing . | . . . Sneak Attacks . | . . . Combat Hostiles . | . . . Follow-up Attacks . | . . . Damage Inflicted 1044 | . 696 348 Guns 224 | . 224 . Cannons 472 | . 472 . Explosions 348 | . . 348 Melee . | . . . Ramming . | . . . Kinetic . | . . . Thermal 696 | . 696 . Explosive 348 | . . 348 Electromagnetic . | . . . Impact . | . . . Slashing . | . . . Piercing . | . . . Highest Corruption . | . . . Average Corruption . | . . . Corruption Purged . | . . . Corruption Blocked . | . . . Overload Shots . | . . . Overflow Damage 6 | . . 6 Projectiles . | . . . Explosions 6 | . . 6 Melee . | . . . Knockbacks . | . . . Impact . | . . . Kinetic . | . . . Secondary . | . . . Self-Inflicted Damage 94 | . . 94 Shots 4 | . . 4 Rammed . | . . . Targets Rammed . | . . . Kicked . | . . . Crushed . | . . . Highest Temperature 270 | . 270 9 Average Temperature 85 | . 86 9 Received Heat Transfer 222 | . 222 . Siege Activations . | . . . Martial Activations . | . . . Shielding Activations . | . . . Robots Disrupted . | . . . Combat Hostiles . | . . . Robots Corrupted . | . . . Combat Hostiles . | . . . Parts Fried . | . . . Impact Corruptions . | . . . Robots Melted 1 | . 1 . Combat Hostiles 1 | . 1 . Parts Melted 7 | . 7 . Heat Transferred 1665 | . 1665 . Parts Sabotaged . | . . . Parts Stolen . | . . . Parts Stripped . | . . . Power Chain Reactions . | . . . Alert | -11 -10 -10 ------- Run | Yrd Mat Min Maximum Alert Level . | . . . Low Security (%) 100 | 100 100 100 Level 1 . | . . . Level 2 . | . . . Level 3 . | . . . Level 4 . | . . . Level 5 . | . . . High Security . | . . . Max Security . | . . . Peak Influence 102 | . 102 79 Initial . | . . . Average 31 | . 31 67 Influence Increases 404 | . 306 98 Destroy 0b10 Robot/C 260 | . 200 60 Destroy 0b10 Robot/NC 15 | . 15 . Destroy Leader 64 | . 54 10 Successful Hack 4 | . 4 . Destroy Structure 31 | . 3 28 Lose Combat Pursuer 30 | . 30 . Influence Decreases 336 | . 306 30 Time Decay 316 | . 286 30 Lost Part 20 | . 20 . Squads Dispatched 2 | . 2 . Investigation 1 | . 1 . Extermination . | . . . Reinforcement 1 | . 1 . Assault . | . . . Garrison . | . . . Intercept . | . . . Searches Triggered . | . . . Construction Impeded . | . . . Haulers Reinforced . | . . . Active Scanning Responses . | . . . Cargo Convoy Interrupts . | . . . Stealth | -11 -10 -10 --------- Run | Yrd Mat Min Distress Signals 1 | . 1 . Communications Jammed . | . . . Distress Signals . | . . . Times Spotted 29 | . 22 7 Peak Tracking Total 4 | . 4 4 Tactical Retreats 1 | . 1 . Traps | -11 -10 -10 ------- Run | Yrd Mat Min Traps Triggered 1 | . 1 . Indirectly . | . . . Trap Hack Attempts . | . . . Triggered . | . . . Disarmed . | . . . Reprogrammed . | . . . Reused . | . . . Traps Extracted . | . . . Installed . | . . . Triggered . | . . . Machines | -11 -10 -10 ---------- Run | Yrd Mat Min Machines Disabled . | . . . Max in Single Turn . | . . . Machines Repaired . | . . . Machines Dismantled . | . . . Machines Sabotaged . | . . . Overloaded Fab Kills . | . . . Hacking | -11 -10 -10 --------- Run | Yrd Mat Min Machines Accessed 6 | . 6 . Terminals 6 | . 6 . Fabricators . | . . . Repair Stations . | . . . Recycling Units . | . . . Scanalyzers . | . . . Garrison Access . | . . . Total Hacks 22 | . 22 . Successful 12 | . 12 . Failed 10 | . 10 . Catastrophic . | . . . Database Lockouts . | . . . Manual 18 | . 18 . Terminals 22 | . 22 . Fabricators . | . . . Repair Stations . | . . . Recycling Units . | . . . Scanalyzers . | . . . Garrison Access . | . . . Terminal Hacks 5 | . 5 . Robot Analysis 2 | . 2 . Prototype ID Bank 2 | . 2 . Surveillance Status 1 | . 1 . Fabricator Hacks . | . . . Repair Station Hacks . | . . . Recycling Unit Hacks . | . . . Scanalyzer . | . . . Garrison Access Hacks . | . . . Unauthorized Hacks 7 | . 7 . Terminals 7 | . 7 . Botnet 4 | . 4 . Skim 3 | . 3 . Fabricators . | . . . Repair Stations . | . . . Recycling Units . | . . . Scanalyzers . | . . . Garrison Access . | . . . Data Cores Recovered 1 | . 1 . Used 1 | . 1 . Hacking Detections 5 | . 5 . Full Trace Events 1 | . 1 . Feedback Events . | . . . Feedback Blocked . | . . . Robot Schematics Acquired . | . . . Robots Built . | . . . Authchips . | . . . Time . | . . . Total Robot Build Rating . | . . . Part Schematics Acquired . | . . . Parts Built . | . . . Authchips . | . . . Time . | . . . Total Part Build Rating . | . . . Part Studies Acquired . | . . . Parts Repaired . | . . . Time . | . . . Parts Recycled . | . . . Recycled Matter . | . . . Retrieved Matter . | . . . Retrieved Components . | . . . Parts Scanalyzed . | . . . Part Schematics Acquired . | . . . Parts Damaged . | . . . Bothacking | -11 -10 -10 ------------ Run | Yrd Mat Min Used RIF Installer . | . . . Robots Hacked . | . . . Non-combat . | . . . Combat . | . . . Robot Hacks Applied . | . . . Relay Couplers Released . | . . . Fabnet Peak Effective % . | . . . Robots Rewired . | . . . Allies Hacked . | . . . Hacks Repelled . | . . . Allies | -11 -10 -10 -------- Run | Yrd Mat Min Total Allies . | . . . Largest Group . | . . . Highest-Rated Group . | . . . Highest-Rated Ally . | . . . Total Orders . | . . . Ally Attacks . | . . . Total Damage . | . . . Kills . | . . . Allies Corrupted . | . . . Allies Melted . | . . . Intel | -11 -10 -10 ------- Run | Yrd Mat Min Active Infowar (turns) 833 | . 768 65 Seismic 833 | . 768 65 Robot Analysis Total 2 | . 2 . Derelict Logs Recovered . | . . . Drone Launches . | . . . Drone Recoveries . | . . . Exploration | -11 -10 -10 ------------- Run | Yrd Mat Min Turns Passed 1084 | 54 965 65 Spaces Moved 650 | 42 561 47 Core 10 | 10 . . Treads . | . . . Legs 366 | 32 334 . Wheels 274 | . 227 47 Hover . | . . . Flight . | . . . Fastest Speed 50 | 50 115 115 Average Speed 130 | 104 133 115 Slowest Speed 190 | 120 190 115 Overloaded Moves . | . . . Propulsion Burnouts . | . . . Robots Hopped . | . . . Potential Cave-ins . | . . . Cave-ins Triggered . | . . . Exploration Rate (%) 35 | 3 93 9 Regions Visited 2 Branch Regions 1 Pre-discovered Areas . | . . . Known Exits Taken . | . . . Unknown Exits Taken 2 | 1 1 . Scrap Searched . | . . . Spaces Dug . | . . . Terrain Destroyed 38 | . . 38 Melee . | . . . Projectile 1 | . . 1 AOE 37 | . . 37 Terrain Rammed . | . . . Walls Destroyed . | . . . Machines Disabled . | . . . Actions | -11 -10 -10 --------- Run | Yrd Mat Min Total 804 | 49 702 53 Wait 61 | . 61 . Move 648 | 41 560 47 Hop . | . . . Pick Up 11 | 2 9 . Fast Attach 10 | 6 4 . Attach 2 | . 1 1 Detach 1 | . 1 . Swap 1 | . 1 . Drop 6 | . 6 . Fire 64 | . 59 5 Melee . | . . . Ram . | . . . Kick . | . . . Crush . | . . . Escape Stasis . | . . . Rewire . | . . . Trap . | . . . Miscellaneous . | . . . Route ------- -11/Scrapyard -10/Materials (discovered 4 exits: [*Mat x3] / [*Min]) -10/Mines History --------- Turn | Location | Event 4 | -11/Scrapyard | Discovered new exit (range 15) 55 | -11/Scrapyard | Entered Materials 199 | -10/Materials | Core integrity fell below 50% 256 | -10/Materials | Discovered new exit (range 11) 311 | -10/Materials | Build established: Mutant 451 | -10/Materials | Discovered new exit (range 12) 466 | -10/Materials | Discovered new exit (range 14) 681 | -10/Materials | Discovered new exit (range 10) 1020 | -10/Materials | Entered Mines 1021 | -10/Mines | Assembled infested the area 1079 | -10/Mines | Core integrity fell below 20% 1085 | -10/Mines | Destroyed by as-85848 with Assembled Blade Last Messages --------------- the area. 00956_ Chain reaction triggered in Imp. Ion Engine. 00968_ U-05 Engineer lays Concrete. 00970_ U-05 Engineer builds a Wall. 00988_ Acquired 20 matter. LOCATION=UNKNOWN GOAL=ESCAPE Something is scanning the area. 01021_ ALERT: Infestation in the mines, dispatching Demolisher response squad. 01021_ S-10 Pest destroyed. 01026_ Acquired 12 matter. 01028_ Acquired 8 matter. 01039_ The unstable cave ceiling collapses. 01080_ Destroyed Asb. Hover Unit. 01080_ as-61274 destroyed. 01080_ Destroyed Asb. F-torch. 01082_ as-84330 destroyed. 01082_ as-57411 destroyed. Map ----- +----------------------------------------------------+ | | | | | | | | | | | | | | | | | | | | | | | | | | | | | | | | | | | | | ??????????????????????????????????????????????? | | ?#######??????????????????????????????????????? | | ?# ##????????#????????????????????????????? | | ?# %* %=#????????# #####??????????????????????? | | ?# = ########### # ##?????????????????????? | | ?## #?????????????????????? | | ?# !%! % ###???????????????????? | | ?## ### a@ #???????????????????? | | ??#######?# # #???????????????????? | | ??????????# ??#???????????????????? | | ?????????# ## ##??????????????????????? | | ????????# #### #????????????????????????? | | ???????# ## ## #????????????????????????? | | ???????# ### ## ###????????????????????????? | | ???????# #??# ## #??????????????????????????? | | ??????# #### ## #??????????????????????????? | | ??????# #??????????????????????????? | | ??????# ##########??????????????????????????? | | ?????? ????????????????????????????????????? | | ?????? ????????????????????????????????????? | | ??????????????????????????????????????????????? | | ??????????????????????????????????????????????? | | ??????????????????????????????????????????????? | | ??????????????????????????????????????????????? | | ??????????????????????????????????????????????? | | ??????????????????????????????????????????????? | | ??????????????????????????????????????????????? | | ??????????????????????????????????????????????? | | ??????????????????????????????????????????????? | | ??????????????????????????????????????????????? | | ??????????????????????????????????????????????? | | ??????????????????????????????????????????????? | +----------------------------------------------------+ Best States ------------- Heat Dissipation 25 Energy Generation 12 Energy Capacity 265 Matter Stores 300 Matter Capacity 300 Sight Range 16 Terrain Scan Density 10 Evasion (%) 55 Item Schematics ----------------- None Robot Schematics ------------------ None Fabricated ------------ Nothing Repaired ---------- Nothing Studied --------- None Alien Tech Used ----------------- None Achievements -------------- None Challenges ------------ None Game ------ Seed MolecularMiningRecalibrator Manual? 0 Play Time 00:10:42 Cumulative 340.0 hours Start 2026.07.23 @ 18:31:39 End 2026.07.23 @ 18:41:29 Sessions 1 Manual Loads 0 Difficulty Rogue Special Mode None Game No. 196 Rogue 122 Adventurer 74 Explorer 0 Win Type - Total 17 Types 14/0/0/3/0/0/0/0/0/0 Lore% 72 Gallery% 66 Achievement% 51 Wizard Run 0 Options --------- Layout 2 ASCII 0 Keyboard 0 Movement Mouse Keybinds 0 Fullscreen 1 Font 32/SmallcapsGlow Map View 50x44 Zoom Use 0% Tactical HUD 1 Map Filters NONE Filters NONE Steam 1 RUN: a7801b11-612b-4cea-b12e-97dcbbbf22cd